Cogmind - Beta 12 @@@ ROGUE MODE // 2023.03.05 @ 19:54:47 Player: Pimski Result: Destroyed by D-53 Grenadier with Mini Grenade Launcher Performance ------------- Evolutions (0) 0 Regions Visited (3) 600 Robots Destroyed (48) 240 Value Destroyed (835) 835 Prototype IDs (25) 500 Alien Tech Used (0) 0 Bonus (300) 300 TOTAL SCORE: 2475 Bonus ------- Aligned with FarCom 300 Cogmind --------- Core Integrity 0/250 Matter 295/300 Energy 96/100 System Corruption 1% Temperature Cool (2) Movement Treading (320) Ox2 Location -10/Exiles Parts ------- > --- POWER (1) -------- (None) > --- PROPULSION (2) --- Light Treads Improved Treads > --- UTILITY (2) ------ Huge Storage Unit Cloak of Protection > --- WEAPON (2) ------- (None) > --- INVENTORY (25) --- Light Angular Momentum Engine Light Treads Light Treads Light Treads Improved Treads Improved Treads Improved Treads Small Storage Unit Structural Scanner Signal Interpreter Light Armor Plating Light Armor Plating Light Armor Plating Light Assault Rifle Light Assault Rifle Light Assault Rifle Light Assault Rifle Grenade Launcher Rocket Launcher Peak State ------------ > --- POWER ------------ Light Ion Engine > --- PROPULSION ------- Light Treads Improved Treads > --- UTILITY ---------- Huge Storage Unit Cloak of Protection > --- WEAPON ----------- (None) > --- INVENTORY -------- Light Angular Momentum Engine Light Treads Light Treads Light Treads Improved Treads Improved Treads Improved Treads Small Storage Unit Structural Scanner Signal Interpreter Light Armor Plating Light Armor Plating Light Armor Plating Light Assault Rifle Light Assault Rifle Light Assault Rifle Light Assault Rifle Grenade Launcher Rocket Launcher [Rating: 15] Favorites ----------- Power Light Ion Engine Engine Light Ion Engine Propulsion Light Treads Treads Light Treads Leg Aluminum Leg Utility Huge Storage Unit Device Cloak of Protection Storage Huge Storage Unit Protection Light Armor Plating Weapon Light Assault Rifle Energy Gun Medium Laser Ballistic Gun Light Assault Rifle Launcher Rocket Launcher Build | -11 -10 -10 -10 ------- Run | Jun Mat Min Exi Slots Evolved . | . . . . Power . | . . . . Propulsion . | . . . . Utility . | . . . . Weapon . | . . . . Parts Attached 32 | 1 23 4 4 Power 5 | . 5 . . Engine 5 | . 5 . . Core . | . . . . Reactor . | . . . . Propulsion 7 | . 5 1 1 Treads 7 | . 5 1 1 Leg . | . . . . Wheel . | . . . . Hover . | . . . . Flight . | . . . . Utility 11 | 1 7 . 3 Device 1 | . . . 1 Storage 6 | 1 5 . . Processor . | . . . . Hackware . | . . . . Protection 4 | . 2 . 2 Artifact . | . . . . Weapon 9 | . 6 3 . Energy Gun 3 | . 3 . . Energy Cannon . | . . . . Ballistic Gun 5 | . 3 2 . Ballistic Cannon . | . . . . Launcher 1 | . . 1 . Special Weapon . | . . . . Impact Weapon . | . . . . Slashing Weapon . | . . . . Piercing Weapon . | . . . . Special Melee Weapon . | . . . . Unidentified Prototypes . | . . . . Parts Lost 8 | . 2 . 6 Power 1 | . . . 1 Propulsion . | . . . . Utility 4 | . 1 . 3 Weapon 3 | . 1 . 2 Highest Loss Streak 4 | . 1 . 4 To Critical Strikes 2 | . . . 2 Average Slot Usage (%) 99 | . 99 100 99 Engine 14 | . 14 14 14 Treads 27 | . 27 28 28 Storage 19 | . 24 14 14 Protection 8 | . 3 14 13 Energy Gun 10 | . 14 9 . Ballistic Gun 17 | . 13 18 28 Naked Turns . | . . . . Heaviest Build 106 | 17 106 88 91 Greatest Support 43 | 20 40 43 43 Greatest Overweight (x) 2 | . 2 2 2 Average Overweight (x) 1 | . 1 2 1 Largest Inventory Capacity 25 | 8 25 25 25 Average Capacity 21 | 8 18 25 25 Most Carried 25 | 8 25 25 25 Average Carried 21 | 6 18 24 24 Final Capacity 25 | 8 25 25 25 Final Carried 25 | 8 25 25 19 Class Distribution -------------------- 100% | Mutant Dominant Class ---------------- Mutant | -10/Materials Mutant | -10/Mines Mutant | -10/Exiles Resources | -11 -10 -10 -10 ----------- Run | Jun Mat Min Exi Matter Collected 689 | 222 303 135 29 Remotely . | . . . . Salvage Created 1713 | 61 1454 198 . Parts 88 | 4 72 12 . Haulers Intercepted 2 | . 2 . . Recyclers Shooed 4 | . 4 . . Parts Field Recycled . | . . . . Retrieved Matter . | . . . . Parts Self-Destructed . | . . . . Prevented . | . . . . Kills | -11 -10 -10 -10 ------- Run | Jun Mat Min Exi Combat Hostiles Destroyed 28 | . 22 6 . Guns 25 | . 22 3 . AOE 3 | . . 3 . Classes Destroyed 8 | 1 7 . . Worker 6 | . 4 2 . Builder 1 | . 1 . . Hauler 2 | . 2 . . Recycler 7 | 1 6 . . Operator 1 | . 1 . . Watcher 3 | . 3 . . Swarmer 11 | . 8 3 . Grunt 17 | . 14 3 . Best Kill Streak 5 | 1 5 3 . Combat Bots Only 4 | . 4 3 . Max Kills in Single Turn 3 | 1 2 3 . Gunslinging 1 | . 1 . . Exploded 3 | . . 3 . Melee . | . . . . Uniques/NPCs Destroyed 2 | . . . 2 EX-DEC (-10/Exiles) EX-BIN (-10/Exiles) Combat | -11 -10 -10 -10 -------- Run | Jun Mat Min Exi Damage Taken 1758 | . 842 123 793 Core 252 | . 90 . 162 Absorbed by Shields . | . . . . Regen/Repaired (Parts) 94 | . 94 . . Core Remaining (%) 100 | 100 . . . Volleys Fired 123 | 4 98 21 . Largest 2 | 2 2 2 . Hottest 90 | 70 90 60 . Shots Fired 245 | 8 195 41 1 Gun 244 | 8 195 40 1 Cannon . | . . . . Launcher 1 | . . 1 . Special . | . . . . Kinetic 121 | 4 96 20 1 Thermal 119 | 4 95 20 . Explosive 1 | . . 1 . Electromagnetic 4 | . 4 . . Robot Hit Streak 13 | 3 13 5 . Robot Miss Streak 3 | 3 3 3 1 Penetration Max . | . . . . Secondary Targets 4 | . 4 . . Max Gunslinging Chain 1 | . 1 . . Shots Hit Robots 155 | 4 128 23 . Core Hits 78 | 2 63 13 . Critical Kills . | . . . . Critical Parts Destroyed . | . . . . Critical Strikes 8 | . 8 . . Burn 8 | . 8 . . Melee Attacks . | . . . . Impact . | . . . . Slashing . | . . . . Piercing . | . . . . Sneak Attacks . | . . . . Combat Hostiles . | . . . . Follow-up Attacks . | . . . . Damage Inflicted 1937 | 50 1492 395 . Guns 1713 | 50 1454 209 . Cannons . | . . . . Explosions 169 | . . 169 . Melee . | . . . . Ramming 55 | . 38 17 . Kinetic 665 | 13 565 87 . Thermal 1036 | 37 877 122 . Explosive 169 | . . 169 . Electromagnetic 12 | . 12 . . Impact . | . . . . Slashing . | . . . . Piercing . | . . . . Highest Corruption 1 | . 1 1 1 Average Corruption 1 | . 1 1 1 Corruption Purged . | . . . . Corruption Blocked . | . . . . Effects 33 | . 11 13 9 Message Errors 9 | . 2 4 3 Matter Fused 6 | . 1 2 3 Heat Flow Errors 5 | . 3 2 . Energy Discharges 4 | . 1 2 1 Data Loss (minor) 4 | . 3 1 . Data Loss (major) 2 | . . 1 1 Misfires 2 | . . 1 1 Weapon Failures 1 | . 1 . . Overload Shots . | . . . . Overflow Damage 18 | . . 18 . Projectiles . | . . . . Explosions 18 | . . 18 . Melee . | . . . . Knockbacks 1 | . . 1 . Impact 1 | . . 1 . Kinetic . | . . . . Secondary . | . . . . Self-Inflicted Damage . | . . . . Shots . | . . . . Rammed 13 | . 10 3 . Targets Rammed 16 | . 13 3 . Kicked . | . . . . Crushed 3 | . 3 . . Highest Temperature 274 | 29 274 154 3 Average Temperature 54 | 12 55 54 3 Received Heat Transfer 300 | . 240 60 . Siege Activations . | . . . . Robots Corrupted . | . . . . Combat Hostiles . | . . . . Parts Fried . | . . . . Impact Corruptions . | . . . . Robots Melted . | . . . . Combat Hostiles . | . . . . Parts Melted 5 | . 5 . . Heat Transferred 3568 | 111 3182 275 . Parts Sabotaged . | . . . . Parts Stolen . | . . . . Parts Stripped . | . . . . Power Chain Reactions . | . . . . Missiles Intercepted . | . . . . Alert | -11 -10 -10 -10 ------- Run | Jun Mat Min Exi Peak Influence 205 | 5 205 135 . Initial 25 | . 3 25 . Average 66 | 3 87 35 . Maximum Alert Level 1 | . 1 . . Low Security (%) 97 | 100 96 100 . Level 1 2 | . 3 . . Level 2 . | . . . . Level 3 . | . . . . Level 4 . | . . . . Level 5 . | . . . . High Security . | . . . . Max Security . | . . . . Squads Dispatched 7 | . 7 . . Investigation 5 | . 5 . . Extermination . | . . . . Reinforcement 2 | . 2 . . Assault . | . . . . Garrison . | . . . . Intercept . | . . . . Searches Triggered . | . . . . Construction Impeded . | . . . . Haulers Reinforced . | . . . . Active Scanning Responses . | . . . . Cargo Convoy Interrupts . | . . . . Stealth | -11 -10 -10 -10 --------- Run | Jun Mat Min Exi Distress Signals 1 | . 1 . . Communications Jammed . | . . . . Distress Signals . | . . . . Times Spotted 59 | . 38 7 14 Peak Tracking Total 10 | . 5 3 10 Tactical Retreats 5 | . 2 1 2 Traps | -11 -10 -10 -10 ------- Run | Jun Mat Min Exi Traps Triggered 5 | . 5 . . Indirectly . | . . . . Trap Hack Attempts . | . . . . Triggered . | . . . . Disarmed . | . . . . Reprogrammed . | . . . . Reused . | . . . . Traps Extracted . | . . . . Installed . | . . . . Triggered . | . . . . Machines | -11 -10 -10 -10 ---------- Run | Jun Mat Min Exi Machines Disabled . | . . . . Max in Single Turn . | . . . . Machines Repaired . | . . . . Machines Sabotaged . | . . . . Overloaded Fab Kills . | . . . . Hacking | -11 -10 -10 -10 --------- Run | Jun Mat Min Exi Machines Accessed 11 | . 9 . 2 Terminals 6 | . 6 . . Fabricators . | . . . . Repair Stations 1 | . 1 . . Recycling Units 2 | . 2 . . Scanalyzers . | . . . . Garrison Access . | . . . . Total Hacks 35 | . 30 . 5 Successful 21 | . 16 . 5 Failed 13 | . 13 . . Catastrophic 3 | . 3 . . Database Lockouts 1 | . 1 . . Manual 19 | . 18 . 1 Terminals 22 | . 22 . . Fabricators . | . . . . Repair Stations 4 | . 4 . . Recycling Units 4 | . 4 . . Scanalyzers . | . . . . Garrison Access . | . . . . Terminal Hacks 10 | . 5 . 5 Record 4 | . . . 4 Robot Analysis 2 | . 2 . . Prototype ID Bank 1 | . 1 . . Branch Access Points 1 | . 1 . . Unreport Threat 1 | . 1 . . EX-Prototype ID Bank 1 | . . . 1 Fabricator Hacks . | . . . . Repair Station Hacks 4 | . 4 . . Scan Component 2 | . 2 . . Repair 2 | . 2 . . Recycling Unit Hacks 2 | . 2 . . Report Inventory 2 | . 2 . . Scanalyzer . | . . . . Garrison Access Hacks . | . . . . Unauthorized Hacks 5 | . 5 . . Terminals 3 | . 3 . . Botnet 2 | . 2 . . Disrupt 1 | . 1 . . Fabricators . | . . . . Repair Stations . | . . . . Recycling Units 2 | . 2 . . Tunnel 2 | . 2 . . Scanalyzers . | . . . . Garrison Access . | . . . . Data Cores Recovered . | . . . . Used . | . . . . Hacking Detections 7 | . 7 . . Full Trace Events . | . . . . Feedback Events . | . . . . Feedback Blocked . | . . . . Robot Schematics Acquired . | . . . . Robots Built . | . . . . Authchips . | . . . . Time . | . . . . Total Robot Build Rating . | . . . . Part Schematics Acquired . | . . . . Parts Built . | . . . . Authchips . | . . . . Time . | . . . . Total Part Build Rating . | . . . . Parts Repaired 2 | . 2 . . Time 52 | . 52 . . Parts Recycled . | . . . . Recycled Matter . | . . . . Retrieved Matter . | . . . . Retrieved Components . | . . . . Parts Scanalyzed . | . . . . Part Schematics Acquired . | . . . . Parts Damaged . | . . . . Bothacking | -11 -10 -10 -10 ------------ Run | Jun Mat Min Exi Used RIF Installer . | . . . . Robots Hacked . | . . . . Non-combat . | . . . . Combat . | . . . . Robot Hacks Applied . | . . . . Relay Couplers Released . | . . . . Fabnet Peak Effective % . | . . . . Robots Rewired . | . . . . Allies Hacked . | . . . . Hacks Repelled . | . . . . Allies | -11 -10 -10 -10 -------- Run | Jun Mat Min Exi Total Allies 2 | . . 2 . Largest Group 2 | . . 2 2 Highest-Rated Group 46 | . . 46 46 Highest-Rated Ally 31 | . . 31 31 Total Orders . | . . . . Ally Attacks 38 | . . . 38 Total Damage 1877 | . . . 1877 Kills 4 | . . . 4 Allies Corrupted . | . . . . Allies Melted . | . . . . Turrets Deployed 3 | . . . 3 Intel | -11 -10 -10 -10 ------- Run | Jun Mat Min Exi Robot Analysis Total 2 | . 2 . . Derelict Logs Recovered 1 | . . 1 . Drone Launches . | . . . . Drone Recoveries . | . . . . Exploration | -11 -10 -10 -10 ------------- Run | Jun Mat Min Exi Turns Passed 5245 | 35 2658 1695 857 Spaces Moved 1607 | 17 825 502 263 Core . | . . . . Treads 1566 | . 801 502 263 Legs 41 | 17 24 . . Wheels . | . . . . Hover . | . . . . Flight . | . . . . Fastest Speed 120 | 120 120 320 240 Average Speed 286 | 120 258 320 319 Slowest Speed 320 | 120 320 320 320 Overloaded Moves . | . . . . Propulsion Burnouts . | . . . . Robots Hopped . | . . . . Cave-ins Triggered . | . . . . Exploration Rate (%) 64 | 2 99 99 59 Regions Visited 3 Branch Regions 2 Pre-discovered Areas 3 | . 2 . 1 Known Exits Taken 1 | . 1 . . Unknown Exits Taken 2 | 1 . 1 . Scrap Searched 1 | . . 1 . Spaces Dug . | . . . . Terrain Destroyed 10 | . . 10 . Melee . | . . . . Projectile . | . . . . AOE 10 | . . 10 . Terrain Rammed . | . . . . Walls Destroyed . | . . . . Machines Disabled . | . . . . Actions | -11 -10 -10 -10 --------- Run | Jun Mat Min Exi Total 2031 | 23 1170 550 288 Wait 149 | . 133 16 . Move 1604 | 16 824 501 263 Hop . | . . . . Pick Up 58 | 2 45 2 9 Fast Attach 6 | 1 4 1 . Attach 11 | . 6 1 4 Detach . | . . . . Swap 15 | . 13 2 . Drop 49 | . 34 3 12 Fire 123 | 4 98 21 . Melee . | . . . . Ram . | . . . . Kick . | . . . . Crush 16 | . 13 3 . Escape Stasis . | . . . . Rewire . | . . . . Trap . | . . . . Miscellaneous . | . . . . Route ------- -11/Junkyard -10/Materials (discovered 4 exits: [*Mat x3] / *Min) -10/Mines (discovered 3 exits: [*Mat x2] / *Exi) -10/Exiles (discovered 1 exit: [*Min]) History --------- Turn | Location | Event 13 | -11/Junkyard | Discovered new exit (range 1) 36 | -11/Junkyard | Entered Materials 89 | -10/Materials | Discovered new exit (range 5) 279 | -10/Materials | Discovered new exit (range 15) 308 | -10/Materials | Build established: Mutant 860 | -10/Materials | Discovered new exit (range 14) 1110 | -10/Materials | Central database locked down 1114 | -10/Materials | Identified exit to Mines 1237 | -10/Materials | Discovered new exit (range 15) 2301 | -10/Materials | Repaired Lgt. Assault Rifle 2328 | -10/Materials | Repaired Lgt. Assault Rifle 2694 | -10/Materials | Entered Mines 2804 | -10/Mines | Discovered new exit (range 8) 2871 | -10/Mines | Deemed a non-threat by the Exiles lab entrance 2871 | -10/Mines | Discovered new exit (range 5) 3017 | -10/Mines | Received a Rocket Launcher from a helpful Derelict 3254 | -10/Mines | Discovered new exit (range 12) 3571 | -10/Mines | Joined a pair of Derelicts in attacking an 0b10 outpost 4389 | -10/Mines | Entered Exiles 4389 | -10/Exiles | Accompanied by 2 allies 4419 | -10/Exiles | Led the pair of lost Derelicts to a safe place 4434 | -10/Exiles | Discovered new exit (range 15) 4549 | -10/Exiles | Met 8R-AWN 4594 | -10/Exiles | Met EX-HEX 4760 | -10/Exiles | Met EX-DEC 4811 | -10/Exiles | Learned location of Zion (-6) 4872 | -10/Exiles | Met EX-BIN 4920 | -10/Exiles | Aligned with FarCom system 4923 | -10/Exiles | Given EX-Vault access code 4997 | -10/Exiles | Opened EX-Vault 5026 | -10/Exiles | Found Deploy-a-Sentry 5030 | -10/Exiles | Found Cloak of Protection 5035 | -10/Exiles | Found Deploy-a-Sentry 5040 | -10/Exiles | Found Deploy-a-Sentry 5114 | -10/Exiles | Warned to stay clear of 0b10 Research branches 5135 | -10/Exiles | Exiles lab attacked by MAIN.C 5197 | -10/Exiles | Attacked by the Exiles 5203 | -10/Exiles | DAS Turret deployed 5203 | -10/Exiles | Core integrity fell below 50% 5207 | -10/Exiles | DAS Turret deployed 5209 | -10/Exiles | Core integrity fell below 20% 5212 | -10/Exiles | DAS Turret deployed 5218 | -10/Exiles | Allies destroyed EX-DEC 5219 | -10/Exiles | Allies destroyed EX-BIN 5246 | -10/Exiles | Destroyed by D-53 Grenadier with Mini Grenade Launcher Last Messages --------------- 05240_ HV Slug penetrates DAS Turret. 05240_ Penetrated by HV Slug. 05240_ Critical hit (Destroy). 05240_ Lgt. Assault Rifle destroyed. 05240_ HV Slug penetrates DAS Turret. 05240_ DAS Turret suffers critical hit (Destroy). 05240_ DAS Turret destroyed. 05243_ Penetrated by HV Slug. 05243_ Critical hit (Destroy). 05243_ Lgt. Assault Rifle destroyed. 05243_ Acquired 9 matter. 05245_ RWHK5Z/SB3=P3JZSYV1JY7QMA52LETAZQK,ZCOT 05245_ Penetrated by HV Slug. 05245_ HV Slug penetrates Machine. 05245_ Penetrated by HV Slug. 05245_ Critical hit (Destroy). 05245_ Lgt. Armor Plating destroyed. 05245_ HV Slug penetrates Machine. 05245_ Machine disabled. 05246_ Lgt. Ion Engine destroyed. Map ----- +----------------------------------------------------+ | ??????????????????????????????????#""X" #? | | ??????????????????????????????????#" #? | | ??????????????????????????????????#" ## #? | | ??????????????????????????????????#""""""?# #? | | ??????????????????????????????????##"###??# #? | | ??????????????????????????????????? ??????# #? | | ??????????????????????????????????????????# #? | | ?????????????????????????????????????????## ## | | ?????????????????????????????????????????#" | | ?????????????????????????????????????????#" | | ?????????????????????????????????????????#" | | ???????????????????????????????##????????#" | | ???????????????????????????####"##???????#" | | ??????????????????????????# " "#???????#" | | ??????????????????????????#"" """#???????## | | ??????????????????????????#"" #????????# | | ??????????????????????????#"" #????????#" | | ??????????????????????????#"" "#????????#" | | ??????????????????????????# ""#????????#" " | | ??????????????????????????#"" ""#???????##" ## | | ???????????? ???????????### #####????##"" #? | | ???????????" ####??##?### ######"" #? | | ???????????" """##;##X #""""""" ## | | ???????????" % % "" " "" # | | ????????????# % g % | | ?????????????# %%%%@ | | ??????????????## % % d% | | ???????????????###% %% g | | ?????????????????##%% | | ??????????????????## & | | ???????????????????##" % | | ????????????????????#""" | | ????????????????????#" ######""" | | ????????????????????""% ""##????#####" | | ???????????????????#""" %" "##??????????# | | ???????????????????""" """##???????????# | | ???????????????????"" ! ""#???????????## | | ???????????????????""% !!!%########??####" | | ???????????????????""" ! ## ####""" | | ???????????????????"" % """" | | ???????????????????#"" | | ????????????????????"""" = | | ????????????????????? *% | | ?????????????????????" " "" | | ?????????????????????"""" % ""## ##"" | | ?????????????????????"" ""#### #### | | ?????????????????????? """"##??# #??? | | ??????????????????????"" """#??## #### | | ??????????????????????? ""##??#! "!# | | ???????????????????????" """##???#" !# | +----------------------------------------------------+ Best States ------------- Heat Dissipation 25 Energy Generation 10 Energy Capacity 250 Matter Stores 300 Matter Capacity 300 Sight Range 16 Terrain Scan Density 10 Armor Coverage 150 Evasion (%) 55 Recoil Reduction 2 Item Schematics ----------------- None Robot Schematics ------------------ None Fabricated ------------ Nothing Alien Tech Used ----------------- None Achievements -------------- None Challenges ------------ None Game ------ Seed LinearPortableDetonator Manual? 0 Play Time 00:28:43 Cumulative 787.0 hours Start 2023.03.05 @ 18:30:09 End 2023.03.05 @ 19:54:47 Sessions 3 Manual Loads 0 Difficulty Rogue Special Mode None Game No. 515 Rogue 515 Adventurer 0 Explorer 0 Win Type - Total 113 Types 77/7/8/10/5/1/4/0/1 Lore% 89 Gallery% 87 Achievement% 82 Wizard Run 0 Options --------- ASCII 0 Keyboard 0 Movement Numpad Keybinds 0 Fullscreen 2 Font 18/SmallcapsGlow Map View 76x50 Tactical HUD 1 Map Filters NONE Filters NONE Steam 1 RUN: 5ea923a2-1105-4c09-b7a1-dae67d3c001f